Cogmind - Beta 15 @@@ ROGUE MODE // 2025.07.19 @ 13:01:39 Player: shapeshifter Result: Destroyed by H-66 Slayer with Gauss Rifle Performance ------------- Evolutions (4) 2000 Regions Visited (12) 2400 Robots Destroyed (91) 455 Value Destroyed (3016) 3016 Prototype IDs (7) 140 Alien Tech Used (0) 0 Bonus (454) 454 TOTAL SCORE: 8465 Bonus ------- Follower Combat Kills 254 Entered Garrisons 200 Cogmind --------- Core Integrity 0/850 Matter 48/300 Energy 77/100 System Corruption 3% Temperature Cool (0) Movement Core (400) Ox7 Location -6/Extension Parts ------- > --- POWER (2) -------- (None) > --- PROPULSION (4) --- (None) > --- UTILITY (6) ------ Large Storage Unit Advanced Targeting Computer > --- WEAPON (3) ------- Ripper > --- INVENTORY (15) --- Improved Heat Sink Advanced Weight Redist. System Component Analysis Suite High-powered Shock Rifle Gatling Laser Proton Cannon Peak State ------------ > --- POWER ------------ Light Angular Momentum Engine > --- PROPULSION ------- Flexi-carbon Leg Flexi-carbon Leg Flexi-carbon Leg Myomer Leg > --- UTILITY ---------- Improved Cooling System Large Storage Unit Advanced Targeting Computer Improved Medium Armor Plating Improved Medium Armor Plating Layered Medium Armor Plating > --- WEAPON ----------- Enhanced Autogun Assault Cannon Advanced Assault Cannon > --- INVENTORY -------- Improved Heat Sink Advanced Weight Redist. System EM Disruption Field Component Analysis Suite High-powered Shock Rifle Gatling Laser Proton Cannon Ripper [Rating: 62] Favorites ----------- Power Enhanced Nuclear Core Engine Ion Engine Power Core Enhanced Nuclear Core Propulsion Light Treads Treads Light Treads Leg Flexi-carbon Leg Utility Seismic Detector Device Seismic Detector Storage Large Storage Unit Processor Advanced Targeting Computer Protection Propulsion Shielding Weapon Assault Cannon Energy Gun Field Laser Energy Cannon Advanced Beam Cannon Ballistic Gun Light Assault Rifle Ballistic Cannon Assault Cannon Launcher Grenade Launcher Slashing Weapon Ripper Build | -11 -10 -10 -9 -9 -8 -8 -8 -7 -7 -7 -6 -6 ------- Run | Yrd Mat Min Mat Min Mat Gar Mat Fac Low Low Fac Ext Slots Evolved 8 | . . . 2 . 2 . . 2 . . 2 . Power 1 | . . . . . . . . . . . 1 . Propulsion 2 | . . . 1 . . . . 1 . . . . Utility 4 | . . . 1 . 1 . . 1 . . 1 . Weapon 1 | . . . . . 1 . . . . . . . Parts Attached 69 | 7 4 1 4 2 9 1 6 9 3 . 14 9 Power 8 | 1 . . 1 . 1 1 . 2 . . 1 1 Engine 3 | 1 . . 1 . . . . . . . . 1 Core 5 | . . . . . 1 1 . 2 . . 1 . Reactor . | . . . . . . . . . . . . . Propulsion 18 | 2 2 . 1 . 3 . 1 4 . . 4 1 Treads 12 | . 2 . 1 . 3 . 1 4 . . 1 . Leg 6 | 2 . . . . . . . . . . 3 1 Wheel . | . . . . . . . . . . . . . Hover . | . . . . . . . . . . . . . Flight . | . . . . . . . . . . . . . Utility 19 | 2 1 . 2 . 3 . 1 1 2 . 5 2 Device 5 | 1 . . . . . . 1 . . . 2 1 Storage 3 | 1 1 . . . 1 . . . . . . . Processor 2 | . . . . . 1 . . . 1 . . . Hackware . | . . . . . . . . . . . . . Protection 9 | . . . 2 . 1 . . 1 1 . 3 1 Artifact . | . . . . . . . . . . . . . Weapon 24 | 2 1 1 . 2 2 . 4 2 1 . 4 5 Energy Gun 6 | . . 1 . . . . 1 1 1 . 1 1 Energy Cannon 2 | . . . . . 1 . . . . . . 1 Ballistic Gun 7 | 2 . . . . . . 2 1 . . 1 1 Ballistic Cannon 7 | . . . . 2 1 . 1 . . . 2 1 Launcher 1 | . 1 . . . . . . . . . . . Special Weapon . | . . . . . . . . . . . . . Impact Weapon . | . . . . . . . . . . . . . Slashing Weapon 1 | . . . . . . . . . . . . 1 Piercing Weapon . | . . . . . . . . . . . . . Special Melee Weapon . | . . . . . . . . . . . . . Unidentified Prototypes 5 | . . . . . 1 . . 4 . . . . Parts Lost 35 | . . . . . 1 . 2 1 6 . 8 17 Power 4 | . . . . . . . . . . . 2 2 Propulsion 11 | . . . . . . . . 1 4 . 2 4 Utility 11 | . . . . . 1 . 1 . 2 . . 7 Weapon 9 | . . . . . . . 1 . . . 4 4 Highest Loss Streak 13 | . . . . . 1 . 2 1 6 . 3 13 To Critical Strikes . | . . . . . . . . . . . . . Average Backups 11 | 2 5 8 10 14 14 15 13 11 13 14 13 8 Power 1 | . . 1 1 1 2 2 2 2 2 2 1 . Propulsion 1 | 1 2 2 3 3 1 2 1 1 . . . . Utility 4 | . . 3 3 5 5 5 4 4 4 5 5 4 Weapon 4 | . 1 2 3 5 5 6 4 2 5 7 6 3 Tool/Special . | . . . . . . . . . . . . . Unused Backups 9 | . . . 1 . 2 1 . . . . 4 1 Power 2 | . . . 1 . . 1 . . . . . . Propulsion 2 | . . . . . 1 . . . . . 1 . Utility 3 | . . . . . . . . . . . 2 1 Weapon 2 | . . . . . 1 . . . . . 1 . Tool/Special . | . . . . . . . . . . . . . Average Slot Usage (%) 92 | . 100 100 91 100 99 100 97 98 88 76 82 76 Engine 3 | . 14 14 11 11 2 . . . . . . 1 Core 4 | . . . . . 6 9 8 6 7 7 7 . Treads 20 | . 4 28 25 33 27 27 26 29 21 15 9 . Leg 4 | . 23 . . . . . . . . . 8 18 Device 12 | . 14 14 11 11 9 9 14 15 13 7 11 6 Storage 8 | . 14 14 11 11 9 9 9 7 7 7 6 6 Processor 5 | . . . . . 8 9 9 7 6 7 6 6 Protection 7 | . . . 11 11 9 9 3 6 6 7 12 15 Energy Gun 6 | . . 8 11 5 . . . 7 11 15 8 9 Energy Cannon 1 | . . . . . 6 9 3 . . . . 1 Ballistic Gun 4 | . 21 5 10 5 . . 10 6 2 . . 1 Ballistic Cannon 7 | . . . . 11 20 18 12 7 7 7 7 6 Launcher 1 | . 6 14 . . . . . . . . . . Peak Build Rating 62 | 7 7 8 13 17 28 28 28 38 38 27 59 62 Average Rating 26 | 5 7 7 10 15 25 28 26 32 32 27 42 48 On Entrance 21 | . 7 7 8 13 17 28 28 24 38 27 27 49 Naked Turns . | . . . . . . . . . . . . . Heaviest Build 67 | 14 31 31 34 41 46 42 42 43 43 40 66 67 Greatest Support 85 | 20 40 40 60 60 62 62 62 84 84 40 60 85 Greatest Overweight (x) 10 | . . . . . . . . . 1 . 2 10 Average Overweight (x) . | . . . . . . . . . . . . . Largest Inventory Capacity 15 | 8 15 15 15 15 15 15 15 15 15 15 15 15 Average Capacity 14 | 7 9 15 15 15 15 15 15 15 15 15 15 15 Most Carried 15 | 4 8 9 15 15 15 15 15 15 15 14 15 10 Average Carried 11 | 2 5 8 10 14 14 15 13 11 13 14 13 8 Final Capacity 15 | 8 15 15 15 15 15 15 15 15 15 15 15 15 Final Carried 15 | 3 8 9 14 15 15 15 13 15 14 14 11 6 Class Distribution -------------------- 34% | Mutant 23% | Scavenger-Tank 22% | Tank 8% | Scavenger-Gunner 7% | Gunner 4% | Skirmisher Dominant Class ---------------- Mutant | -10/Materials Mutant | -10/Mines Mutant | -9/Materials Mutant | -9/Mines Scavenger-Tank | -8/Materials Tank | -8/Garrison Skirmisher | -8/Materials Scavenger-Tank | -7/Factory Scavenger-Gunner | -7/Lower Caves Gunner | -7/Lower Caves Tank | -6/Factory Tank | -6/Extension Resources | -11 -10 -10 -9 -9 -8 -8 -8 -7 -7 -7 -6 -6 ----------- Run | Yrd Mat Min Mat Min Mat Gar Mat Fac Low Low Fac Ext Matter Collected 2516 | 232 62 151 86 74 489 76 183 407 243 . 266 247 Remotely . | . . . . . . . . . . . . . Salvage Created 2735 | 36 185 13 84 173 537 186 283 245 306 . 380 307 Parts 157 | 7 20 2 5 10 29 7 16 14 15 . 18 14 Haulers Intercepted 1 | . . . . . . . . 1 . . . . Recyclers Shooed 5 | 1 . . . . . . . 1 . . 1 2 Parts Field Recycled . | . . . . . . . . . . . . . Retrieved Matter . | . . . . . . . . . . . . . Parts Self-Destructed 15 | . . . . . . . . . 15 . . . Prevented 5 | . . . . . . . . . . 5 . . Kills | -11 -10 -10 -9 -9 -8 -8 -8 -7 -7 -7 -6 -6 ------- Run | Yrd Mat Min Mat Min Mat Gar Mat Fac Low Low Fac Ext Combat Hostiles Destroyed 79 | . 6 4 2 7 17 4 9 2 7 . 12 9 Guns 27 | . 5 . 2 3 . . 1 . 4 . 7 5 Cannons 47 | . . . . 4 17 4 8 2 3 . 5 4 AOE 5 | . 1 4 . . . . . . . . . . Classes Destroyed 15 | 1 6 1 . . 3 . . 1 2 . 1 . Worker 2 | . 1 . . . . . . 1 . . . . Builder 1 | . 1 . . . . . . . . . . . Tunneler 3 | 2 1 . . . . . . . . . . . Hauler 1 | . . . . . . . . 1 . . . . Recycler 3 | . 1 . . . 1 . . 1 . . . . Operator 2 | . . . . . . . . . . . 1 1 Watcher 1 | . 1 . . . . . . . . . . . Swarmer 29 | . 5 3 . 3 6 . 3 . . . 5 4 Grunt 31 | . 1 . 2 4 7 3 3 1 5 . 1 4 Brawler 1 | . . . . . 1 . . . . . . . Sentry 11 | . . . . . 2 1 3 1 . . 3 1 Hunter 1 | . . . . . 1 . . . . . . . Programmer 4 | . . . . . . . . . 1 . 3 . Behemoth 1 | . . . . . . . . . 1 . . . Assembled 1 | . . 1 . . . . . . . . . . Best Kill Streak 8 | 2 8 3 1 3 6 4 6 2 3 . 6 4 Combat Bots Only 6 | . 3 3 1 3 6 4 6 1 3 . 5 4 Max Kills in Single Turn 3 | 1 3 2 1 1 1 1 1 1 1 . 1 2 Gunslinging . | . . . . . . . . . . . . . Exploded 2 | . 1 2 . . . . . . . . . . Melee . | . . . . . . . . . . . . . Uniques/NPCs Destroyed . | . . . . . . . . . . . . . Combat | -11 -10 -10 -9 -9 -8 -8 -8 -7 -7 -7 -6 -6 -------- Run | Yrd Mat Min Mat Min Mat Gar Mat Fac Low Low Fac Ext Hostile Shots Fired 803 | . 34 12 5 21 54 8 56 11 81 . 183 338 Missed 225 | . 13 5 2 9 12 2 10 5 22 . 46 99 Hits 578 | . 21 7 3 12 42 6 46 6 59 . 137 239 Projectile 578 | . 21 7 3 12 42 6 46 6 59 . 137 239 AOE 6 | . . 6 . . . . . . . . . . Critical Strikes 8 | . . . . . 1 . 1 . 5 . . 1 Actively Blocked 2 | . . . . . . . . . 2 . . . Part Disruptions 1 | . . . . . . . . . . . 1 . Damage Taken 7522 | . 180 252 34 140 595 84 648 41 1089 . 1924 2535 Core 1390 | . 31 32 13 28 26 . 144 . 246 . 146 724 Absorbed by Shields . | . . . . . . . . . . . . . Redirected to Shielding 237 | . . . . . 42 36 22 9 118 . 10 . Core Remaining (%) 79 | 100 . 74 . 89 . . 69 . . 64 . . Volleys Fired 228 | 8 16 7 5 19 38 11 21 10 23 . 39 31 Largest 3 | 2 2 2 2 2 3 3 3 3 3 . 3 3 Hottest 180 | 40 50 70 60 74 142 142 142 125 161 . 161 180 Shots Fired 570 | 16 30 14 10 38 114 33 58 27 68 . 100 62 Gun 254 | 16 28 7 10 28 . . 21 17 45 . 56 26 Cannon 307 | . . . . 10 114 33 37 10 23 . 44 36 Launcher 9 | . 2 7 . . . . . . . . . . Special . | . . . . . . . . . . . . . Kinetic 395 | 16 28 6 5 24 85 22 50 18 31 . 61 49 Thermal 141 | . . . . . 29 11 8 9 37 . 39 8 Explosive 9 | . 2 7 . . . . . . . . . . Electromagnetic 25 | . . 1 5 14 . . . . . . . 5 Robot Hit Streak 15 | 3 2 7 7 11 8 11 8 4 13 . 7 15 Robot Miss Streak 7 | 2 7 3 2 3 4 1 5 2 2 . 7 3 Penetration Max 1 | . . . . . . . . . . . 1 . Secondary Targets 4 | . 1 . 1 1 . . . . . . 1 . Max Gunslinging Chain 1 | . 1 . 1 1 . . . . . . 1 . Shots Hit Robots 337 | 9 8 9 7 22 54 23 31 14 53 . 63 44 Core Hits 193 | 3 16 15 4 14 29 9 14 8 20 . 38 23 Critical Kills 4 | . . . . . . . . . . . 3 1 Critical Parts Destroyed 1 | . . . . . . . . . . . 1 . Critical Strikes 15 | . . . . . 1 1 2 1 4 . 5 1 Burn 5 | . . . . . . . . 1 3 . 1 . Destroy 5 | . . . . . . . . . . . 4 1 Blast 5 | . . . . . 1 1 2 . 1 . . . Melee Attacks 2 | . . . . . . . . . . . . 2 Impact . | . . . . . . . . . . . . . Slashing 2 | . . . . . . . . . . . . 2 Piercing . | . . . . . . . . . . . . . Sneak Attacks . | . . . . . . . . . . . . . Combat Hostiles . | . . . . . . . . . . . . . Follow-up Attacks . | . . . . . . . . . . . . . Damage Inflicted 8042 | 97 470 428 76 330 1319 548 695 293 1158 . 1625 1003 Guns 2793 | 97 122 35 76 177 . . 222 156 739 . 808 361 Cannons 4251 | . . . . 153 1319 548 473 130 419 . 609 600 Explosions 913 | . 343 373 . . . . . . . . 197 . Melee 42 | . . . . . . . . . . . . 42 Ramming 43 | . 5 20 . . . . . 7 . . 11 . Kinetic 4734 | 97 122 35 27 227 891 362 614 200 559 . 821 779 Thermal 2330 | . . . . . 428 186 81 86 599 . 793 157 Explosive 716 | . 343 373 . . . . . . . . . . Electromagnetic 177 | . . . 49 103 . . . . . . . 25 Impact . | . . . . . . . . . . . . . Slashing 42 | . . . . . . . . . . . . 42 Piercing . | . . . . . . . . . . . . . Highest Corruption 3 | . 1 1 . . . . . . . . 3 3 Average Corruption 1 | . 1 1 . . . . . . . . 2 3 Corruption Purged . | . . . . . . . . . . . . . Corruption Blocked . | . . . . . . . . . . . . . Effects 13 | . . 3 . . . . . . . . 2 8 Message Errors 2 | . . . . . . . . . . . . 2 Matter Fused 3 | . . . . . . . . . . . 1 2 Heat Flow Errors 1 | . . 1 . . . . . . . . . . Energy Discharges 1 | . . . . . . . . . . . 1 . Data Loss (minor) 3 | . . 1 . . . . . . . . . 2 Alerts 1 | . . 1 . . . . . . . . . . Weapon Failures 2 | . . . . . . . . . . . . 2 Overload Shots . | . . . . . . . . . . . . . Overflow Damage 99 | . . 13 . 10 11 . . . . . 65 . Projectiles 21 | . . . . 10 11 . . . . . . . Explosions 78 | . . 13 . . . . . . . . 65 . Melee . | . . . . . . . . . . . . . Knockbacks 38 | . . . . . 10 1 4 1 1 . 14 7 Impact . | . . . . . . . . . . . . . Kinetic 37 | . . . . . 10 1 4 1 1 . 13 7 Secondary 1 | . . . . . . . . . . . 1 . Self-Inflicted Damage 174 | . . 104 . . . . . . . . 70 . Shots 5 | . . 4 . . . . . . . . 1 . Rammed 4 | . . 2 . . . . . 1 . . 1 . Targets Rammed 6 | . 1 2 . . . . . 2 . . 1 . Kicked 1 | . 1 . . . . . . . . . . . Crushed 1 | . . . . . . . . 1 . . . . Highest Temperature 561 | . 6 102 34 71 502 345 561 9 496 . 396 60 Average Temperature 158 | . 4 38 15 33 197 154 260 9 186 . 153 21 Received Heat Transfer 1831 | . 18 . 12 60 297 54 189 9 544 . 228 420 Effects 19 | . . . . . 9 1 6 . 3 . . . Shutdowns 7 | . . . . . 4 . 1 . 2 . . . Energy Bleed 4 | . . . . . 3 1 . . . . . . Interference 3 | . . . . . . . 3 . . . . . Matter Decay 2 | . . . . . 1 . . . 1 . . . Damage (minor) 2 | . . . . . 1 . 1 . . . . . Damage (core) 1 | . . . . . . . 1 . . . . . Siege Activations . | . . . . . . . . . . . . . Martial Activations . | . . . . . . . . . . . . . Shielding Activations . | . . . . . . . . . . . . . Robots Disrupted . | . . . . . . . . . . . . . Combat Hostiles . | . . . . . . . . . . . . . Robots Corrupted . | . . . . . . . . . . . . . Combat Hostiles . | . . . . . . . . . . . . . Parts Fried . | . . . . . . . . . . . . . Impact Corruptions . | . . . . . . . . . . . . . Robots Melted . | . . . . . . . . . . . . . Combat Hostiles . | . . . . . . . . . . . . . Parts Melted 5 | . . . . . . . . . 4 . 1 . Heat Transferred 4789 | . . . . . 777 333 148 259 1480 . 1442 350 Parts Sabotaged . | . . . . . . . . . . . . . Parts Stolen . | . . . . . . . . . . . . . Parts Stripped . | . . . . . . . . . . . . . Power Chain Reactions . | . . . . . . . . . . . . . Alert | -11 -10 -10 -9 -9 -8 -8 -8 -7 -7 -7 -6 -6 ------- Run | Yrd Mat Min Mat Min Mat Gar Mat Fac Low Low Fac Ext Maximum Alert Level 1 | . 1 . . . 1 . . . . . 1 . Low Security (%) 96 | 100 99 100 100 100 77 100 100 100 . . 97 100 Level 1 3 | . . . . . 22 . . . . . 2 . Level 2 . | . . . . . . . . . . . . . Level 3 . | . . . . . . . . . . . . . Level 4 . | . . . . . . . . . . . . . Level 5 . | . . . . . . . . . . . . . High Security . | . . . . . . . . . . . . . Max Security . | . . . . . . . . . . . . . Peak Influence 311 | 5 199 175 65 134 311 181 183 60 . . 222 170 Initial 108 | . . 49 . 1 40 96 87 60 . . . 108 Average 73 | . 89 64 23 61 129 146 120 19 . . 44 125 Influence Increases 2695 | 10 263 161 117 276 535 85 256 76 185 . 491 240 Destroy 0b10 Robot/C 1720 | . 120 80 80 220 360 80 180 40 140 . 240 180 Destroy 0b10 Robot/NC 65 | 10 25 . . . 5 . . 15 . . 5 5 Destroy Leader 404 | . 32 10 30 40 90 . 50 12 30 . 90 20 Allied During Kill 27 | . . 1 7 15 4 . . . . . . . Successful Hack 51 | . 9 . . . 11 . . 7 . . 24 . Disable Machine 165 | . 30 45 . . 15 . 15 . . . 60 . Destroy Structure 128 | . 47 25 . 1 20 5 11 2 . . 12 5 Lose Combat Pursuer 135 | . . . . . 30 . . . 15 . 60 30 Influence Decreases 2667 | 10 134 290 112 177 490 53 304 209 185 . 269 434 Entered New Map 482 | . . 80 . 4 64 53 94 73 . . . 114 Time Decay 1709 | 10 134 170 112 170 246 . 190 133 185 . 209 150 Lost Part 263 | . . . . . 10 . 20 3 . . 60 170 Lost Ally 63 | . . 40 . 3 20 . . . . . . . Purge Threat 150 | . . . . . 150 . . . . . . . Squads Dispatched 13 | . 3 . 1 1 2 . 1 . . . 4 1 Investigation 4 | . 2 . . . . . 1 . . . 1 . Extermination 2 | . . . . . . . . . . . 2 . Reinforcement 6 | . 1 . 1 . 2 . . . . . 1 1 Assault 1 | . . . . 1 . . . . . . . . Garrison . | . . . . . . . . . . . . . Intercept . | . . . . . . . . . . . . . Searches Triggered . | . . . . . . . . . . . . . Construction Impeded . | . . . . . . . . . . . . . Haulers Reinforced . | . . . . . . . . . . . . . Active Scanning Responses . | . . . . . . . . . . . . . Cargo Convoy Interrupts . | . . . . . . . . . . . . . Stealth | -11 -10 -10 -9 -9 -8 -8 -8 -7 -7 -7 -6 -6 --------- Run | Yrd Mat Min Mat Min Mat Gar Mat Fac Low Low Fac Ext Distress Signals 2 | . . . . . 1 . . . . . . 1 Communications Jammed . | . . . . . . . . . . . . . Distress Signals . | . . . . . . . . . . . . . Times Spotted 113 | . 11 5 5 14 24 3 9 2 7 . 19 14 Peak Tracking Total 7 | . 6 3 2 4 5 2 4 1 3 . 5 7 Tactical Retreats 8 | . . . . . 2 . . . 1 . 3 2 Traps | -11 -10 -10 -9 -9 -8 -8 -8 -7 -7 -7 -6 -6 ------- Run | Yrd Mat Min Mat Min Mat Gar Mat Fac Low Low Fac Ext Traps Triggered 4 | . . . . . . 1 2 . . . 1 . Indirectly . | . . . . . . . . . . . . . Trap Hack Attempts . | . . . . . . . . . . . . . Triggered . | . . . . . . . . . . . . . Disarmed . | . . . . . . . . . . . . . Reprogrammed . | . . . . . . . . . . . . . Reused . | . . . . . . . . . . . . . Traps Extracted . | . . . . . . . . . . . . . Installed . | . . . . . . . . . . . . . Triggered . | . . . . . . . . . . . . . Machines | -11 -10 -10 -9 -9 -8 -8 -8 -7 -7 -7 -6 -6 ---------- Run | Yrd Mat Min Mat Min Mat Gar Mat Fac Low Low Fac Ext Machines Disabled 11 | . 2 3 . . 1 . 1 . . . 4 . Max in Single Turn 2 | . 1 2 . . 1 . 1 . . . 1 . Machines Repaired . | . . . . . . . . . . . . . Machines Dismantled . | . . . . . . . . . . . . . Machines Sabotaged . | . . . . . . . . . . . . . Overloaded Fab Kills . | . . . . . . . . . . . . . Hacking | -11 -10 -10 -9 -9 -8 -8 -8 -7 -7 -7 -6 -6 --------- Run | Yrd Mat Min Mat Min Mat Gar Mat Fac Low Low Fac Ext Machines Accessed 14 | . 4 . . . 3 . 1 1 . . 5 . Terminals 12 | . 4 . . . 2 . 1 1 . . 4 . Fabricators . | . . . . . . . . . . . . . Repair Stations . | . . . . . . . . . . . . . Recycling Units 1 | . . . . . . . . . . . 1 . Scanalyzers . | . . . . . . . . . . . . . Garrison Access 1 | . . . . . 1 . . . . . . . Total Hacks 45 | . 15 . . . 7 . 4 3 . . 16 . Successful 21 | . 6 . . . 4 . 1 1 . . 9 . Failed 24 | . 9 . . . 3 . 3 2 . . 7 . Catastrophic 1 | . . . . . . . . 1 . . . . Database Lockouts . | . . . . . . . . . . . . . Manual . | . . . . . . . . . . . . . Terminals 42 | . 15 . . . 6 . 4 3 . . 14 . Fabricators . | . . . . . . . . . . . . . Repair Stations . | . . . . . . . . . . . . . Recycling Units 2 | . . . . . . . . . . . 2 . Scanalyzers . | . . . . . . . . . . . . . Garrison Access 1 | . . . . . 1 . . . . . . . Terminal Hacks 19 | . 6 . . . 3 . 1 1 . . 8 . Record 3 | . . . . . . . 1 . . . 2 . Robot Analysis 1 | . 1 . . . . . . . . . . . Prototype ID Bank 1 | . . . . . 1 . . . . . . . Open Door 1 | . . . . . . . . . . . 1 . Branch Access Points 2 | . . . . . . . . 1 . . 1 . Alert Level 3 | . 1 . . . . . . . . . 2 . Unreport Threat 1 | . . . . . 1 . . . . . . . Locate Traps 1 | . 1 . . . . . . . . . . . Security Status 1 | . . . . . 1 . . . . . . . Recall Reinforcements 1 | . 1 . . . . . . . . . . . Hauler Manifests 1 | . 1 . . . . . . . . . . . Zone Layout 3 | . 1 . . . . . . . . . 2 . Fabricator Hacks . | . . . . . . . . . . . . . Repair Station Hacks . | . . . . . . . . . . . . . Recycling Unit Hacks 1 | . . . . . . . . . . . 1 . Report Inventory 1 | . . . . . . . . . . . 1 . Scanalyzer . | . . . . . . . . . . . . . Garrison Access Hacks 1 | . . . . . 1 . . . . . . . Unlock Access 1 | . . . . . 1 . . . . . . . Unauthorized Hacks . | . . . . . . . . . . . . . Terminals . | . . . . . . . . . . . . . Fabricators . | . . . . . . . . . . . . . Repair Stations . | . . . . . . . . . . . . . Recycling Units . | . . . . . . . . . . . . . Scanalyzers . | . . . . . . . . . . . . . Garrison Access . | . . . . . . . . . . . . . Data Cores Recovered . | . . . . . . . . . . . . . Used . | . . . . . . . . . . . . . Hacking Detections 9 | . 4 . . . 2 . 1 . . . 2 . Full Trace Events 5 | . 3 . . . . . 1 . . . 1 . Feedback Events 1 | . 1 . . . . . . . . . . . Corruption 1 | . 1 . . . . . . . . . . . Feedback Blocked . | . . . . . . . . . . . . . Robot Schematics Acquired . | . . . . . . . . . . . . . Robots Built . | . . . . . . . . . . . . . Authchips . | . . . . . . . . . . . . . Time . | . . . . . . . . . . . . . Total Robot Build Rating . | . . . . . . . . . . . . . Part Schematics Acquired . | . . . . . . . . . . . . . Parts Built . | . . . . . . . . . . . . . Authchips . | . . . . . . . . . . . . . Time . | . . . . . . . . . . . . . Total Part Build Rating . | . . . . . . . . . . . . . Parts Repaired . | . . . . . . . . . . . . . Time . | . . . . . . . . . . . . . Parts Recycled . | . . . . . . . . . . . . . Recycled Matter . | . . . . . . . . . . . . . Retrieved Matter . | . . . . . . . . . . . . . Retrieved Components . | . . . . . . . . . . . . . Parts Scanalyzed . | . . . . . . . . . . . . . Part Schematics Acquired . | . . . . . . . . . . . . . Parts Damaged . | . . . . . . . . . . . . . Bothacking | -11 -10 -10 -9 -9 -8 -8 -8 -7 -7 -7 -6 -6 ------------ Run | Yrd Mat Min Mat Min Mat Gar Mat Fac Low Low Fac Ext Used RIF Installer . | . . . . . . . . . . . . . Robots Hacked . | . . . . . . . . . . . . . Non-combat . | . . . . . . . . . . . . . Combat . | . . . . . . . . . . . . . Robot Hacks Applied . | . . . . . . . . . . . . . Relay Couplers Released . | . . . . . . . . . . . . . Fabnet Peak Effective % . | . . . . . . . . . . . . . Robots Rewired . | . . . . . . . . . . . . . Allies Hacked . | . . . . . . . . . . . . . Hacks Repelled . | . . . . . . . . . . . . . Allies | -11 -10 -10 -9 -9 -8 -8 -8 -7 -7 -7 -6 -6 -------- Run | Yrd Mat Min Mat Min Mat Gar Mat Fac Low Low Fac Ext Total Allies 4 | . . 3 . 1 . . . . . . . . Largest Group 3 | . . 3 1 1 1 . . . . . . . Highest-Rated Group 40 | . . 40 16 31 28 . . . . . . . Highest-Rated Ally 31 | . . 16 16 31 28 . . . . . . . Total Orders . | . . . . . . . . . . . . . Ally Attacks 38 | . . 4 12 16 6 . . . . . . . Total Damage 468 | . . 24 162 198 84 . . . . . . . Kills 8 | . . 1 2 4 1 . . . . . . . Allies Corrupted . | . . . . . . . . . . . . . Allies Melted . | . . . . . . . . . . . . . Intel | -11 -10 -10 -9 -9 -8 -8 -8 -7 -7 -7 -6 -6 ------- Run | Yrd Mat Min Mat Min Mat Gar Mat Fac Low Low Fac Ext Active Infowar (turns) 4867 | 23 349 444 272 398 520 89 381 327 1108 42 877 37 Seismic 4867 | 23 349 444 272 398 520 89 381 327 1108 42 877 37 Machine Analysis 1749 | . . . . . 519 89 381 327 433 . . . Robot Analysis Total 1 | . 1 . . . . . . . . . . . Derelict Logs Recovered 4 | . . 1 . 1 . . . . 2 . . . Drone Launches . | . . . . . . . . . . . . . Drone Recoveries . | . . . . . . . . . . . . . Exploration | -11 -10 -10 -9 -9 -8 -8 -8 -7 -7 -7 -6 -6 ------------- Run | Yrd Mat Min Mat Min Mat Gar Mat Fac Low Low Fac Ext Turns Passed 5248 | 122 349 444 272 398 520 89 381 327 1108 42 877 319 Spaces Moved 2461 | 67 232 136 150 213 236 27 192 172 574 27 372 63 Core 11 | 8 . . . . . . . . . . . 3 Treads 1972 | . 36 136 150 213 236 27 192 172 574 27 209 . Legs 478 | 59 196 . . . . . . . . . 163 60 Wheels . | . . . . . . . . . . . . . Hover . | . . . . . . . . . . . . . Flight . | . . . . . . . . . . . . . Fastest Speed 50 | 50 120 160 160 160 155 155 152 152 150 160 120 120 Average Speed 163 | 111 126 160 160 160 156 155 154 154 178 160 192 143 Slowest Speed 550 | 120 160 160 160 160 160 155 155 156 240 160 320 550 Overloaded Moves . | . . . . . . . . . . . . . Propulsion Burnouts . | . . . . . . . . . . . . . Robots Hopped . | . . . . . . . . . . . . . Potential Cave-ins . | . . . . . . . . . . . . . Cave-ins Triggered . | . . . . . . . . . . . . . Exploration Rate (%) 24 | 4 62 36 17 44 27 7 18 6 71 8 11 13 Regions Visited 12 Branch Regions 5 Pre-discovered Areas 4 | . . 2 . 1 . . . . 1 . . . Known Exits Taken 4 | . . . . . 1 . . 1 1 . 1 . Unknown Exits Taken 7 | 1 1 1 1 1 . . 1 . . 1 . . Scrap Searched 2 | . . 1 . . . . . . 1 . . . Spaces Dug . | . . . . . . . . . . . . . Terrain Destroyed 147 | . 50 53 . 1 18 . 9 . . . 11 5 Melee . | . . . . . . . . . . . . . Projectile 35 | . . . . 1 18 . 9 . . . 2 5 AOE 112 | . 50 53 . . . . . . . . 9 . Terrain Rammed . | . . . . . . . . . . . . . Walls Destroyed . | . . . . . . . . . . . . . Machines Disabled . | . . . . . . . . . . . . . Actions | -11 -10 -10 -9 -9 -8 -8 -8 -7 -7 -7 -6 -6 --------- Run | Yrd Mat Min Mat Min Mat Gar Mat Fac Low Low Fac Ext Total 3232 | 100 259 347 174 234 304 51 235 211 608 26 446 237 Wait 354 | 9 . 201 . . . 9 3 4 3 . . 125 Move 2450 | 66 231 135 149 212 236 26 191 171 573 26 371 63 Hop . | . . . . . . . . . . . . . Pick Up 75 | 10 6 1 11 1 11 2 6 10 3 . 11 3 Fast Attach 6 | . . . . . . . 2 . . . 4 . Attach 42 | 7 . . 2 . 3 . 4 6 5 . 7 8 Detach 1 | . . . . . . . . . 1 . . . Swap 35 | . 4 1 3 2 6 1 3 5 . . 5 5 Drop 33 | . 1 . 4 . 10 2 5 3 . . 8 . Fire 228 | 8 16 7 5 19 38 11 21 10 23 . 39 31 Melee 2 | . . . . . . . . . . . . 2 Ram . | . . . . . . . . . . . . . Kick 1 | . 1 . . . . . . . . . . . Crush 5 | . . 2 . . . . . 2 . . 1 . Escape Stasis . | . . . . . . . . . . . . . Rewire . | . . . . . . . . . . . . . Trap . | . . . . . . . . . . . . . Miscellaneous . | . . . . . . . . . . . . . Route ------- -11/Scrapyard -10/Materials (discovered 2 exits: [*Mat] / [*Min]) -10/Mines -9/Materials -9/Mines -8/Materials -8/Garrison -8/Materials -7/Factory (discovered 2 exits: *Low x2) -7/Lower Caves -7/Lower Caves -6/Factory (discovered 4 exits: Low x2 / *Ext x2) -6/Extension History --------- Turn | Location | Event 27 | -11/Scrapyard | Discovered new exit (range 14) 123 | -11/Scrapyard | Entered Materials 254 | -10/Materials | Discovered new exit (range 10) 323 | -10/Materials | Build established: Mutant 427 | -10/Materials | Discovered new exit (range 13) 472 | -10/Materials | Entered Mines 488 | -10/Mines | Learned location of Storage (-9) 493 | -10/Mines | Assisted by bots powering up and referring to "LRC-V3" 585 | -10/Mines | Assembled infested the area 908 | -10/Mines | Discovered new exit (range 6) 916 | -10/Mines | Entered Materials 916 | -9/Materials | Accompanied by 1 ally 916 | -9/Materials | Evolved 2 slots: Propulsion x1, Utility x1 1125 | -9/Materials | Discovered new exit (range 8) 1188 | -9/Materials | Entered Mines 1188 | -9/Mines | Accompanied by 1 ally 1218 | -9/Mines | Learned location of Zion (-6) 1246 | -9/Mines | Met a Derelict testing a Signal Generator 1447 | -9/Mines | YI-UF0 nonchalantly dropped a Grenade Launcher on the ground 1547 | -9/Mines | Discovered new exit (range 7) 1586 | -9/Mines | Entered Materials 1586 | -8/Materials | Accompanied by 1 ally 1586 | -8/Materials | Evolved 2 slots: Utility x1, Weapon x1 2106 | -8/Materials | Identified exit to Garrison 2106 | -8/Materials | Entered Garrison 2122 | -8/Garrison | Triggered checkpoint 2153 | -8/Garrison | Discovered new exit (range 5) 2195 | -8/Garrison | Entered Materials 2497 | -8/Materials | Discovered new exit (range 5) 2576 | -8/Materials | Entered Factory 2576 | -7/Factory | Evolved 2 slots: Propulsion x1, Utility x1 2786 | -7/Factory | Discovered new exit (range 5) 2818 | -7/Factory | Identified exit to Lower Caves 2897 | -7/Factory | Build established: Scavenger-Tank 2903 | -7/Factory | Entered Lower Caves 3068 | -7/Lower Caves | Spotted B-75 Beast 3089 | -7/Lower Caves | Identified exit to Lower Caves 3391 | -7/Lower Caves | Destroyed B-75 Beast 3416 | -7/Lower Caves | Lost 6 parts (4n2u) 3650 | -7/Lower Caves | Build established: Scavenger-Gunner 4011 | -7/Lower Caves | Entered another Lower Caves area 4043 | -7/Lower Caves | Discovered new exit (range 4) 4053 | -7/Lower Caves | Entered Factory 4053 | -6/Factory | Evolved 2 slots: Power x1, Utility x1 4094 | -6/Factory | Build established: Gunner 4665 | -6/Factory | Identified exit to Lower Caves 4665 | -6/Factory | Identified exit to Extension 4808 | -6/Factory | Lost 3 parts (1p2w) 4930 | -6/Factory | Entered Extension 5005 | -6/Extension | Lost 3 parts (1p1u1w) 5235 | -6/Extension | Core integrity fell below 50% 5244 | -6/Extension | Core integrity fell below 20% 5249 | -6/Extension | Destroyed by H-66 Slayer with Gauss Rifle Last Messages --------------- 05221_ Slug penetrates Recycling Unit. 05221_ Myomer Leg destroyed. 05222_ Slug penetrates Recycling Unit. 05222_ Assault Cannon destroyed. 05224_ Slug penetrates Recycling Unit. 05224_ R-10 Processor collects Hvy. Laser. 05225_ Slug penetrates Recycling Unit. 05227_ Recycling Unit collapses. 05227_ Recycling Unit disabled. 05227_ Penetrated by Slug. 05229_ EM Disruption Field destroyed. 05230_ Acquired 36 matter. 05231_ Enh. Autogun destroyed. 05233_ Penetrated by Slug. 05234_ Adv. Assault Cannon destroyed. 05236_ Penetrated by Slug. 05237_ Imp. Cooling System destroyed. 05239_ Penetrated by Slug. 05240_ Slug penetrates Recycling Unit. 05242_ Penetrated by Slug. Map ----- +----------------------------------------------------+ | | | | | | | | | | | | | | | | | | | | | | | | | | | | | ????????????????????????????????????????????? | | ????????????????????????????????????????????? | | ????????????????######??????????????????????? | | ???????????????? % #??????????????????????? | | ?????????##?????? [ #??????????????????????? | | ????????? ?????? % #??????????????????????? | | ?????##?? #???????= #??????????????????????? | | ????##"## #??????? % #?????T#???????????????? | | ????# # #???????#!%#####+#######??????????? | | ????# # #??????##%%%%% + ???????????? | | ????# # #??????#;Y%hh #????????????????? | | ?????# ######## @ "" # //????????????? | | ?????# # ; "Y + ????????????? | | ?????# # g// # """ # ????????????? | | ?????# + l # #????????????????? | | ?????# # / # !#????????????????? | | ?????# # + ##"T"###????????????????? | | ?????# # ####?####??????????????????? | | ?????# % ####"###??????????????????????????? | | ?????# % #??###????????????????????????????? | | ?????# % #?????????????????????????????????? | | ?????# ####?????????????????????????????????? | | ?????# "#???????????????????????????????????? | | ?????# ##???????????????????????????????????? | | ?????# #????????????????????????????????????? | | ?????# #????????????????????????????????????? | | ?????# #????????????????????????????????????? | | ?????# #????????????????????????????????????? | | ?????# #????????????????????????????????????? | | ?????# #????????????????????????????????????? | | ?????# #????????????????????????????????????? | | ?????# #????????????????????????????????????? | | ?????# #????????????????????????????????????? | | ?????# #????????????????????????????????????? | | ?##### #####????????????????????????????????? | | ?# "" "" #????????????????????????????????? | +----------------------------------------------------+ Best States ------------- Heat Dissipation 64 Energy Generation 26 Energy Capacity 360 Matter Stores 300 Matter Capacity 300 Sight Range 16 Terrain Scan Density 10 Armor Coverage 675 Propulsion Shielding 66 Weapon Shielding 66 Evasion (%) 55 Targeting Accuracy 8 Recoil Reduction 4 Item Schematics ----------------- None Robot Schematics ------------------ None Fabricated ------------ Nothing Repaired ---------- Nothing Alien Tech Used ----------------- None Achievements -------------- None Challenges ------------ None Game ------ Seed DrainedPersonalHammer Manual? 0 Play Time 00:50:06 Cumulative 16.0 hours Start 2025.07.19 @ 12:10:54 End 2025.07.19 @ 13:01:39 Sessions 1 Manual Loads 0 Difficulty Rogue Special Mode None Game No. 47 Rogue 47 Adventurer 0 Explorer 0 Win Type - Total 0 Types 0/0/0/0/0/0/0/0/0/0 Lore% 18 Gallery% 19 Achievement% 14 Wizard Run 0 Options --------- Layout 1 ASCII 0 Keyboard 0 Movement Mouse Keybinds 0 Fullscreen 1 Font 24/Smallcaps Map View 50x40 Zoom Use 0% Tactical HUD 1 Map Filters NONE Filters NONE Steam 1 RUN: e4054390-e37a-4657-8d35-1d895e162fb7